fUSD/lending_fUSD_20240614
["ID","MTS","AMOUNT","RATE_DAILY","PERIOD"]
[329413160,1718326323729,-909.71,0.00025205,3]
[329413161,1718326323747,-500.0,0.00025205,3]
[329413162,1718326323782,-512.05778234,0.00025205,3]
[329413163,1718326323801,-500.0,0.00025205,3]
[329413164,1718326323828,-9157.77,0.00025205,3]
[329413165,1718326323846,-1186.73,0.00025205,3]
[329413166,1718326323858,-500.0,0.00025205,3]
[329413167,1718326323886,-500.0,0.00025205,3]
[329413168,1718326323937,-555.02,0.00025205,3]
[329413169,1718326323980,-500.0,0.00025205,3]
[329413170,1718326323994,-500.0,0.00025205,3]
[329413171,1718326324014,-1036.07,0.00025205,3]
[329413172,1718326324026,-500.0,0.00025205,3]
[329413173,1718326324038,-500.0,0.00025205,3]
[329413174,1718326324081,-500.0,0.00025205,3]
[329413175,1718326324092,-5406.88,0.00025205,3]
[329413176,1718326324125,-500.0,0.00025205,3]
[329413177,1718326324159,-500.0,0.00025205,3]
[329413178,1718326324186,-1070.96,0.00025205,3]
[329413179,1718326324228,-2320.28,0.00025205,3]
[329413180,1718326324250,-500.0,0.00025205,3]
[329413181,1718326324277,-500.0,0.00025205,3]
[329413182,1718326324303,-500.0,0.00025205,3]
[329413183,1718326324317,-736.73,0.00025205,3]
[329413184,1718326324340,-500.0,0.00025205,3]
[329413185,1718326324354,-901.93,0.00025205,3]
[329413186,1718326324383,-890.11,0.00025205,3]
[329413187,1718326324450,-1107.32,0.00025205,3]
[329413188,1718326324476,-500.0,0.00025205,3]
[329413189,1718326324512,-500.0,0.00025205,3]
[329413190,1718326324537,-500.0,0.00025205,3]
[329413191,1718326324560,-500.0,0.00025205,3]
[329413192,1718326324573,-500.0,0.00025205,3]
[329413193,1718326324584,-617.42,0.00025205,3]
[329413194,1718326324612,-1082.78,0.00025205,3]
[329413195,1718326324638,-500.0,0.00025205,3]
[329413196,1718326324652,-500.0,0.00025205,3]
[329413197,1718326324682,-500.0,0.00025205,3]
[329413198,1718326324741,-500.0,0.00025205,3]
[329413199,1718326324752,-500.0,0.00025205,3]
[329413200,1718326324774,-1129.3,0.00025205,3]
[329413201,1718326324824,-500.0,0.00025205,3]
[329413202,1718326324856,-681.39,0.00025205,3]
[329413203,1718326324867,-1279.93,0.00025205,3]
[329413204,1718326324883,-1545.42,0.00025205,3]
[329413205,1718326324894,-500.0,0.00025205,3]
[329413206,1718326324922,-1018.85,0.00025205,3]
[329413207,1718326324937,-1223.08,0.00025205,3]
[329413208,1718326324954,-691.09,0.00025205,3]
[329413209,1718326324964,-714.83,0.00025205,3]
[329413210,1718326324996,-500.0,0.00025205,3]
[329413211,1718326325017,-500.0,0.00025205,3]
[329413212,1718326325072,-778.93,0.00025205,3]
[329413213,1718326325091,-3531.42,0.00025205,3]
[329413214,1718326325113,-500.0,0.00025205,3]
[329413215,1718326325153,-681.15,0.00025205,3]
[329413216,1718326325164,-500.0,0.00025205,3]
[329413217,1718326325248,-1473.8,0.00025205,3]
[329413218,1718326325308,-788.91,0.00025205,3]
[329413219,1718326325325,-500.0,0.00025205,3]
[329413220,1718326325337,-6475.63,0.00025205,3]
[329413221,1718326325349,-777.73,0.00025205,3]
[329413222,1718326325379,-500.0,0.00025205,3]
[329413223,1718326325418,-1577.29,0.00025205,3]
[329413224,1718326325432,-500.0,0.00025205,3]
[329413225,1718326325468,-1120.28,0.00025205,3]
[329413226,1718326325481,-1642.87,0.00025205,3]
[329413227,1718326325516,-2389.0,0.00025205,3]
[329413228,1718326325548,-1291.36,0.00025205,3]
[329413229,1718326325585,-500.0,0.00025205,3]
[329413230,1718326325608,-907.92,0.00025205,3]
[329413231,1718326325619,-500.0,0.00025205,3]
[329413232,1718326325630,-500.0,0.00025205,3]
[329413233,1718326325644,-520.14,0.00025205,3]
[329413234,1718326325656,-12987.45,0.00025205,3]
[329413235,1718326325676,-2319.99,0.00025205,3]
[329413236,1718326325705,-500.0,0.00025205,3]
[329413237,1718326325745,-611.86,0.00025205,3]
[329413238,1718326325777,-778.21,0.00025205,3]
[329413239,1718326325808,-754.88,0.00025205,3]
[329413240,1718326325819,-500.0,0.00025205,3]
[329413241,1718326325876,-4074.81,0.00025205,3]
[329413242,1718326325887,-2845.3,0.00025205,3]
[329413243,1718326325904,-656.54,0.00025205,3]
[329413244,1718326325915,-500.0,0.00025205,3]
[329413245,1718326326008,-500.0,0.00025205,3]
[329413246,1718326326024,-1483.98,0.00025205,3]
[329413247,1718326326072,-1532.91,0.00025205,3]
[329413248,1718326326083,-2056.22,0.00025205,3]
[329413249,1718326326128,-576.83,0.00025205,3]
[329413250,1718326326139,-500.0,0.00025205,3]
[329413251,1718326326168,-599.45,0.00025205,3]
[329413252,1718326326181,-872.76,0.00025205,3]
[329413253,1718326326215,-1278.2,0.00025205,3]
[329413254,1718326326228,-500.0,0.00025205,3]
[329413255,1718326326243,-1297.03,0.00025205,3]
[329413256,1718326326264,-500.0,0.00025205,3]
[329413257,1718326326297,-20832.05,0.00025205,3]
[329413258,1718326326344,-3101.77,0.00025205,3]
[329413259,1718326326362,-538.14424406,0.00025205,3]
[329413260,1718326326391,-500.0,0.00025205,3]
[329413261,1718326326414,-643.49,0.00025205,3]
[329413262,1718326326439,-500.0,0.00025205,3]
[329413263,1718326326456,-500.0,0.00025205,3]
[329413264,1718326326524,-5842.58,0.00025205,3]
[329413265,1718326326552,-1263.39,0.00025205,3]
[329413266,1718326326568,-500.0,0.00025205,3]
[329413267,1718326326640,-2399.05,0.00025205,3]
[329413268,1718326326716,-1214.38,0.00025205,3]
[329413269,1718326326735,-2171.12,0.00025205,3]
[329413270,1718326326753,-500.0,0.00025205,3]
[329413271,1718326326783,-887.59,0.00025205,3]
[329413272,1718326326854,-2938.01,0.00025205,3]
[329413273,1718326326865,-881.63,0.00025205,3]
[329413274,1718326326928,-1881.22,0.00025205,3]
[329413275,1718326327024,-2087.76,0.00025205,3]
[329413276,1718326327063,-1025.72,0.00025205,3]
[329413277,1718326327100,-500.0,0.00025205,3]
[329413278,1718326327124,-500.0,0.00025205,3]
[329413279,1718326327143,-1880.15,0.00025205,3]
[329413280,1718326327155,-1571.8,0.00025205,3]
[329413281,1718326327183,-9937.45,0.00025205,3]
[329413282,1718326327241,-500.0,0.00025205,3]
[329413283,1718326327256,-1153.0,0.00025205,3]
[329413284,1718326327306,-500.0,0.00025205,3]
[329413285,1718326327328,-500.0,0.00025205,3]
[329413286,1718326327340,-500.0,0.00025205,3]
[329413287,1718326327360,-1172.55,0.00025205,3]
[329413288,1718326327384,-500.0,0.00025205,3]
[329413289,1718326327402,-1392.18,0.00025205,3]
[329413290,1718326327424,-325.09754712,0.00025205,3]
[329413291,1718326327439,-1618.84,0.00025205,3]
[329413292,1718326327455,-500.0,0.00025205,3]
[329413293,1718326327473,-3702.08,0.00025205,3]
[329413294,1718326327491,-759.17,0.00025205,3]
[329413295,1718326327508,-501.61262411,0.00025205,3]
[329413296,1718326327556,-11940.85,0.00025205,3]
[329413297,1718326327582,-2248.57,0.00025205,3]
[329413298,1718326327613,-500.0,0.00025205,3]
[329413299,1718326327625,-500.0,0.00025205,3]
[329413300,1718326327638,-899.62,0.00025205,3]
[329413301,1718326327653,-1594.39,0.00025205,3]
[329413302,1718326327677,-4218.81,0.00025205,3]
[329413303,1718326327708,-657.14,0.00025205,3]
[329413304,1718326327732,-500.0,0.00025205,3]
[329413305,1718326327768,-656.47,0.00025205,3]
[329413306,1718326327837,-795.48,0.00025205,3]
[329413307,1718326327863,-3013.12,0.00025205,3]
[329413308,1718326327874,-574.72,0.00025205,3]
[329413309,1718326327885,-500.0,0.00025205,3]
[329413310,1718326327896,-500.0,0.00025205,3]
[329413311,1718326327929,-4273.7,0.00025205,3]
[329413312,1718326327943,-500.0,0.00025205,3]
[329413313,1718326327956,-2686.47,0.00025205,3]
[329413314,1718326327967,-747.72,0.00025205,3]
[329413315,1718326328019,-871.16,0.00025205,3]
[329413316,1718326328041,-500.0,0.00025205,3]
[329413317,1718326328058,-500.0,0.00025205,3]
[329413318,1718326328090,-4848.62,0.00025215,2]
[329413319,1718326328107,-300.0,0.00025254,2]
[329413320,1718326328119,-4894.39175595,0.00025321,2]
[329413321,1718326328146,-500.0,0.00025478,3]
[329413322,1718326328165,-500.0,0.00025478,3]
[329413323,1718326328183,-247685.22577138,0.00025479,13]
[329413324,1718326328197,-500.0,0.00025479,3]
[329413325,1718326328358,-265.70254675,0.00025479,3]
[329413326,1718326328369,-500.0,0.00025479,3]
[329413327,1718326328384,-500.0,0.00025479,3]
[329413328,1718326328472,-500.0,0.00025479,3]
[329413329,1718326328485,-500.0,0.00025479,3]
[329413330,1718326328513,-500.0,0.00025479,3]
[329413331,1718326328584,-500.0,0.00025479,3]
[329413332,1718326328632,-500.0,0.00025479,3]
[329413333,1718326328645,-500.0,0.00025479,3]
[329413334,1718326328655,-500.0,0.00025479,3]
[329413335,1718326328697,-500.0,0.00025479,3]
[329413336,1718326328708,-500.0,0.00025479,3]
[329413337,1718326328727,-500.0,0.00025479,3]
[329413338,1718326328761,-500.0,0.00025479,3]
[329413339,1718326328778,-500.0,0.00025479,3]
[329413340,1718326328822,-500.0,0.00025479,3]
[329413341,1718326328845,-553.86,0.00025479,3]
[329413342,1718326328862,-500.0,0.00025479,3]
[329413343,1718326328873,-500.0,0.00025479,3]
[329413344,1718326328886,-500.0,0.00025479,3]
[329413345,1718326328910,-500.0,0.00025479,3]
[329413346,1718326328958,-630.79094326,0.00025479,3]
[329413347,1718326328969,-500.0,0.00025479,3]
[329413348,1718326328981,-500.0,0.00025479,3]
[329413349,1718326329003,-500.0,0.00025479,3]
[329413350,1718326329020,-500.0,0.00025479,3]
[329413351,1718326329086,-500.0,0.00025479,3]
[329413352,1718326329112,-500.0,0.00025479,3]
[329413353,1718326329124,-500.0,0.00025479,3]
[329413354,1718326329137,-500.0,0.00025479,3]
[329413355,1718326329149,-500.0,0.00025479,3]
[329413356,1718326329162,-500.0,0.00025479,3]
[329413357,1718326329174,-500.0,0.00025479,3]
[329413358,1718326329204,-763.62,0.00025479,3]
[329413359,1718326329216,-500.0,0.00025479,3]
[329413360,1718326329228,-500.0,0.00025479,3]
[329413361,1718326329297,-500.0,0.00025479,3]
[329413362,1718326329368,-500.0,0.00025479,3]
[329413363,1718326329383,-500.0,0.00025479,3]
[329413364,1718326329421,-500.0,0.00025479,3]
[329413365,1718326329451,-500.0,0.00025479,3]
[329413366,1718326329612,-500.0,0.00025479,3]
[329413367,1718326329645,-500.0,0.00025479,3]
[329413368,1718326329720,-500.0,0.00025479,3]
[329413369,1718326329732,-500.0,0.00025479,3]
[329413370,1718326329751,-500.0,0.00025479,3]
[329413371,1718326329809,-500.0,0.00025479,3]
[329413372,1718326329867,-500.0,0.00025479,3]
[329413373,1718326329883,-250.38906237,0.00025479,3]
[329413374,1718326329910,-500.0,0.00025479,3]
[329413375,1718326329928,-500.0,0.00025479,3]
[329413376,1718326329939,-500.0,0.00025479,3]
[329413377,1718326329973,-500.0,0.00025479,3]
[329413378,1718326329984,-500.0,0.00025479,3]
[329413379,1718326329998,-500.0,0.00025479,3]
[329413380,1718326330011,-640.07,0.00025479,3]
[329413381,1718326330023,-500.0,0.00025479,3]
[329413382,1718326330034,-500.0,0.00025479,3]
[329413383,1718326330070,-500.0,0.00025479,3]
[329413384,1718326330082,-500.0,0.00025479,3]
[329413385,1718326330117,-500.0,0.00025479,3]
[329413386,1718326330158,-500.0,0.00025479,3]
[329413387,1718326330172,-500.0,0.00025479,3]
[329413388,1718326330201,-500.0,0.00025479,3]
[329413389,1718326330242,-500.0,0.00025479,3]
[329413390,1718326330261,-500.0,0.00025479,3]
[329413391,1718326330350,-500.0,0.00025479,3]
[329413392,1718326330425,-641.17,0.00025479,3]
[329413393,1718326330470,-500.0,0.00025479,3]
[329413394,1718326330485,-500.0,0.00025479,3]
[329413395,1718326330504,-500.0,0.00025479,3]
[329413396,1718326330548,-629.97,0.00025479,3]
[329413397,1718326330560,-500.0,0.00025479,3]
[329413398,1718326330578,-570.32,0.00025479,3]
[329413399,1718326330594,-500.0,0.00025479,3]
[329413400,1718326330628,-500.0,0.00025479,3]
[329413401,1718326330660,-500.0,0.00025479,3]
[329413402,1718326330684,-500.0,0.00025479,3]
[329413403,1718326330696,-500.0,0.00025479,3]
[329413404,1718326330707,-500.0,0.00025479,3]
[329413405,1718326330725,-500.0,0.00025479,3]
[329413406,1718326330747,-756.62,0.00025479,3]
[329413407,1718326330758,-500.0,0.00025479,3]
[329413408,1718326330773,-500.0,0.00025479,3]
[329413409,1718326330798,-500.0,0.00025479,3]
[329413410,1718326330833,-500.0,0.00025479,3]
[329413411,1718326330851,-500.0,0.00025479,3]
[329413412,1718326330876,-500.0,0.00025479,3]
[329413413,1718326330911,-500.0,0.00025479,3]
[329413414,1718326330940,-500.0,0.00025479,3]
[329413415,1718326330990,-188.01,0.00025479,3]
[329413416,1718326331016,-541.44,0.00025479,3]
[329413417,1718326331080,-500.0,0.00025479,3]
[329413418,1718326331124,-500.0,0.00025479,3]
[329413419,1718326331180,-500.0,0.00025479,3]
[329413420,1718326331196,-500.0,0.00025479,3]
[329413421,1718326331271,-500.0,0.00025479,3]
[329413422,1718326331305,-500.0,0.00025479,3]
[329413423,1718326331333,-500.0,0.00025479,3]
[329413424,1718326331359,-500.0,0.00025479,3]
[329413425,1718326331396,-531.1,0.00025479,3]
[329413426,1718326331407,-500.0,0.00025479,3]
[329413427,1718326331418,-500.0,0.00025479,3]
[329413428,1718326331431,-500.0,0.00025479,3]
[329413429,1718326331460,-500.0,0.00025479,3]
[329413430,1718326331516,-500.0,0.00025479,3]
[329413431,1718326331543,-500.0,0.00025479,3]
[329413432,1718326331554,-500.0,0.00025479,3]
[329413433,1718326331615,-500.0,0.00025479,3]
[329413434,1718326331668,-871.93,0.00025479,3]
[329413435,1718326331751,-500.0,0.00025479,3]
[329413436,1718326331800,-500.0,0.00025479,3]
[329413437,1718326331812,-811.04,0.00025479,3]
[329413438,1718326331860,-500.0,0.00025479,3]
[329413439,1718326331873,-1456.15,0.00025479,3]
[329413440,1718326331890,-500.0,0.00025479,3]
[329413441,1718326331917,-500.0,0.00025479,3]
[329413442,1718326331941,-747.44,0.00025479,3]
[329413443,1718326331953,-897.13,0.00025479,3]
[329413444,1718326331965,-500.0,0.00025479,3]
[329413445,1718326331979,-262.815198,0.00025479,3]
[329413446,1718326331996,-628.37,0.00025479,3]
[329413447,1718326332023,-500.0,0.00025479,3]
[329413448,1718326332072,-500.0,0.00025479,3]
[329413449,1718326332109,-2475.47,0.00025479,3]
[329413450,1718326332153,-500.0,0.00025479,3]
[329413451,1718326332169,-500.0,0.00025479,3]
[329413452,1718326332201,-500.0,0.00025479,3]
[329413453,1718326332227,-500.0,0.00025479,3]
[329413454,1718326332247,-500.0,0.00025479,3]
[329413455,1718326332259,-500.0,0.00025479,3]
[329413456,1718326332319,-746.58,0.00025479,3]
[329413457,1718326332330,-2738.14,0.00025479,3]
[329413458,1718326332358,-414.5,0.00025479,3]
[329413459,1718326332404,-4588.61,0.00025479,3]
[329413460,1718326332448,-500.0,0.00025479,3]
[329413461,1718326332465,-500.0,0.00025479,3]
[329413462,1718326332502,-401.37,0.00025479,3]
[329413463,1718326332517,-745.58,0.00025479,3]
[329413464,1718326332528,-500.0,0.00025479,3]
[329413465,1718326332552,-1721.54,0.00025479,3]
[329413466,1718326332594,-3059.36,0.00025479,3]
[329413467,1718326332617,-500.0,0.00025479,3]
[329413468,1718326332629,-500.0,0.00025479,3]
[329413469,1718326332648,-500.0,0.00025479,3]
[329413470,1718326332659,-500.0,0.00025479,3]
[329413471,1718326332673,-500.0,0.00025479,3]
[329413472,1718326332692,-500.0,0.00025479,3]
[329413473,1718326332734,-500.0,0.00025479,3]
[329413474,1718326332757,-1034.72,0.00025479,3]
[329413475,1718326332792,-500.0,0.00025479,3]
[329413476,1718326332825,-3109.59,0.00025479,3]
[329413477,1718326332868,-960.45,0.00025479,3]
[329413478,1718326332879,-500.0,0.00025479,3]
[329413479,1718326332891,-4009.44,0.00025479,3]
[329413480,1718326332903,-500.0,0.00025479,3]
[329413481,1718326332914,-1373.05,0.00025479,3]
[329413482,1718326332985,-378.03230097,0.00025479,3]
[329413483,1718326333020,-1310.27,0.00025479,3]
[329413484,1718326333040,-500.0,0.00025479,3]
[329413485,1718326333056,-500.0,0.00025479,3]
[329413486,1718326333069,-1256.73,0.00025479,3]
[329413487,1718326333087,-538.3,0.00025479,3]
[329413488,1718326333099,-500.0,0.00025479,3]
[329413489,1718326333120,-1048.7,0.00025479,3]
[329413490,1718326333148,-500.0,0.00025479,3]
[329413491,1718326333164,-1580.07,0.00025479,3]
[329413492,1718326333175,-909.71,0.00025479,3]
[329413493,1718326333198,-500.0,0.00025479,3]
[329413494,1718326333217,-500.0,0.00025479,3]
[329413495,1718326333245,-9157.77,0.00025479,3]
[329413496,1718326333256,-1186.73,0.00025479,3]
[329413497,1718326333280,-500.0,0.00025479,3]
[329413498,1718326333291,-500.0,0.00025479,3]
[329413499,1718326333374,-555.02,0.00025479,3]
[329413500,1718326333386,-587.88400189,0.00025479,3]
[329413501,1718326333401,-500.0,0.00025479,3]
[329413502,1718326333413,-1036.07,0.00025479,3]
[329413503,1718326333424,-500.0,0.00025479,3]
[329413504,1718326333550,-500.0,0.00025479,3]
[329413505,1718326333585,-500.0,0.00025479,3]
[329413506,1718326333595,-5406.88,0.00025479,3]
[329413507,1718326333625,-500.0,0.00025479,3]
[329413508,1718326333640,-500.0,0.00025479,3]
[329413509,1718326333658,-1070.96,0.00025479,3]
[329413510,1718326333713,-2320.28,0.00025479,3]
[329413511,1718326333725,-526.25,0.00025479,3]
[329413512,1718326333796,-500.0,0.00025479,3]
[329413513,1718326333863,-500.0,0.00025479,3]
[329413514,1718326333892,-736.73,0.00025479,3]
[329413515,1718326333922,-500.0,0.00025479,3]
[329413516,1718326333933,-901.93,0.00025479,3]
[329413517,1718326333944,-890.11,0.00025479,3]
[329413518,1718326333966,-1107.32,0.00025479,3]
[329413519,1718326333978,-171.83,0.00025479,3]
[329413520,1718326333994,-500.0,0.00025479,3]
[329413521,1718326334073,-254.29196774,0.00025479,3]
[329413522,1718326334108,-500.0,0.00025479,3]
[329413523,1718326334125,-500.0,0.00025479,3]
[329413524,1718326334157,-617.42,0.00025479,3]
[329413525,1718326334189,-1082.78,0.00025479,3]
[329413526,1718326334218,-500.0,0.00025479,3]
[329413527,1718326334233,-500.0,0.00025479,3]
[329413528,1718326334254,-500.0,0.00025479,3]
[329413529,1718326334302,-500.0,0.00025479,3]
[329413530,1718326334313,-500.0,0.00025479,3]
[329413531,1718326334364,-1129.3,0.00025479,3]
[329413532,1718326334412,-500.0,0.00025479,3]
[329413533,1718326334426,-681.39,0.00025479,3]
[329413534,1718326334438,-1279.93,0.00025479,3]
[329413535,1718326334450,-1545.42,0.00025479,3]
[329413536,1718326334476,-500.0,0.00025479,3]
[329413537,1718326334489,-1018.85,0.00025479,3]
[329413538,1718326334501,-1223.08,0.00025479,3]
[329413539,1718326334512,-691.09,0.00025479,3]
[329413540,1718326334523,-714.83,0.00025479,3]
[329413541,1718326334535,-500.0,0.00025479,3]
[329413542,1718326334552,-500.0,0.00025479,3]
[329413543,1718326334563,-778.93,0.00025479,3]
[329413544,1718326334578,-3531.42,0.00025479,3]
[329413545,1718326334597,-500.0,0.00025479,3]
[329413546,1718326334624,-681.15,0.00025479,3]
[329413547,1718326334638,-500.0,0.00025479,3]
[329413548,1718326334651,-1473.8,0.00025479,3]
[329413549,1718326334663,-788.91,0.00025479,3]
[329413550,1718326334680,-541.50640975,0.00025479,3]
[329413551,1718326334744,-6475.63,0.00025479,3]
[329413552,1718326334767,-777.73,0.00025479,3]
[329413553,1718326334858,-500.0,0.00025479,3]
[329413554,1718326334891,-1577.29,0.00025479,3]
[329413555,1718326334946,-500.0,0.00025479,3]
[329413556,1718326334963,-1120.28,0.00025479,3]
[329413557,1718326334993,-1642.87,0.00025479,3]
[329413558,1718326335044,-2389.0,0.00025479,3]
[329413559,1718326335075,-1291.36,0.00025479,3]
[329413560,1718326335119,-500.0,0.00025479,3]
[329413561,1718326335154,-907.92,0.00025479,3]
[329413562,1718326335176,-314.47046925,0.00025479,3]
[329413563,1718326335244,-500.0,0.00025479,3]
[329413564,1718326335273,-520.14,0.00025479,3]
[329413565,1718326335302,-12987.45,0.00025479,3]
[329413566,1718326335315,-500.0,0.00025479,3]
[329413567,1718326335383,-2319.99,0.00025479,3]
[329413568,1718326335434,-611.86,0.00025479,3]
[329413569,1718326335449,-778.21,0.00025479,3]
[329413570,1718326335461,-754.88,0.00025479,3]
[329413571,1718326335475,-500.0,0.00025479,3]
[329413572,1718326335489,-4074.81,0.00025479,3]
[329413573,1718326335502,-2845.3,0.00025479,3]
[329413574,1718326335552,-656.54,0.00025479,3]
[329413575,1718326335566,-500.0,0.00025479,3]
[329413576,1718326335589,-500.0,0.00025479,3]
[329413577,1718326335601,-1483.98,0.00025479,3]
[329413578,1718326335612,-1532.91,0.00025479,3]
[329413579,1718326335625,-2056.22,0.00025479,3]
[329413580,1718326335661,-576.83,0.00025479,3]
[329413581,1718326335728,-500.0,0.00025479,3]
[329413582,1718326335956,-599.45,0.00025479,3]
[329413583,1718326335971,-872.76,0.00025479,3]
[329413584,1718326335997,-1278.2,0.00025479,3]
[329413585,1718326336011,-500.0,0.00025479,3]
[329413586,1718326336023,-1297.03,0.00025479,3]
[329413587,1718326336038,-500.0,0.00025479,3]
[329413588,1718326336052,-20832.05,0.00025479,3]
[329413589,1718326336073,-3101.77,0.00025479,3]
[329413590,1718326336084,-500.0,0.00025479,3]
[329413591,1718326336108,-643.49,0.00025479,3]
[329413592,1718326336119,-500.0,0.00025479,3]
[329413593,1718326336132,-500.0,0.00025479,3]
[329413594,1718326336144,-5842.58,0.00025479,3]
[329413595,1718326336190,-1263.39,0.00025479,3]
[329413596,1718326336201,-500.0,0.00025479,3]
[329413597,1718326336241,-2399.05,0.00025479,3]
[329413598,1718326336253,-1214.38,0.00025479,3]
[329413599,1718326336280,-2171.12,0.00025479,3]
[329413600,1718326336297,-500.0,0.00025479,3]
[329413601,1718326336310,-887.59,0.00025479,3]
[329413602,1718326336324,-2938.01,0.00025479,3]
[329413603,1718326336335,-881.63,0.00025479,3]
[329413604,1718326336346,-1881.22,0.00025479,3]
[329413605,1718326336357,-2087.76,0.00025479,3]
[329413606,1718326336367,-1025.72,0.00025479,3]
[329413607,1718326336378,-500.0,0.00025479,3]
[329413608,1718326336390,-500.0,0.00025479,3]
[329413609,1718326336402,-1880.15,0.00025479,3]
[329413610,1718326336452,-1571.8,0.00025479,3]
[329413611,1718326336472,-9937.45,0.00025479,3]
[329413612,1718326336510,-500.0,0.00025479,3]
[329413613,1718326336563,-500.0,0.00025479,3]
[329413614,1718326336585,-1153.0,0.00025479,3]
[329413615,1718326336597,-500.0,0.00025479,3]
[329413616,1718326336620,-500.0,0.00025479,3]
[329413617,1718326336632,-1172.55,0.00025479,3]
[329413618,1718326336681,-500.0,0.00025479,3]
[329413619,1718326336724,-1392.18,0.00025479,3]
[329413620,1718326336737,-1618.84,0.00025479,3]
[329413621,1718326336756,-500.0,0.00025479,3]
[329413622,1718326336768,-3702.08,0.00025479,3]
[329413623,1718326336782,-759.17,0.00025479,3]
[329413624,1718326336821,-11940.85,0.00025479,3]
[329413625,1718326336836,-2248.57,0.00025479,3]
[329413626,1718326336857,-500.0,0.00025479,3]
[329413627,1718326336871,-500.0,0.00025479,3]
[329413628,1718326336882,-899.62,0.00025479,3]
[329413629,1718326336893,-1594.39,0.00025479,3]
[329413630,1718326336905,-4218.81,0.00025479,3]
[329413631,1718326336916,-657.14,0.00025479,3]
[329413632,1718326336937,-500.0,0.00025479,3]
[329413633,1718326336947,-656.47,0.00025479,3]
[329413634,1718326336960,-795.48,0.00025479,3]
[329413635,1718326336971,-3013.12,0.00025479,3]
[329413636,1718326336988,-574.72,0.00025479,3]
[329413637,1718326337014,-500.0,0.00025479,3]
[329413638,1718326337026,-500.0,0.00025479,3]
[329413639,1718326337054,-500.0,0.00025479,3]
[329413640,1718326337066,-4273.7,0.00025479,3]
[329413641,1718326337082,-2686.47,0.00025479,3]
[329413642,1718326337096,-747.72,0.00025479,3]
[329413643,1718326337144,-500.0,0.00025479,3]
[329413644,1718326337198,-871.16,0.00025479,3]
[329413645,1718326337213,-500.0,0.00025479,3]
[329413646,1718326337226,-151.0,0.00025479,7]
[329413647,1718326337248,-151.0,0.00025479,7]
[329413648,1718326337260,-151.0,0.00025479,7]
[329413649,1718326337297,-174.072604,0.00025479,7]
[329413650,1718326337313,-4953.48,0.00025489,2]
[329413651,1718326337332,-199.59095128,0.00025653,2]
[329413652,1718326337351,-151.0,0.00025731,4]
[329413653,1718326337362,-500.0,0.00025752,3]
[329413654,1718326337412,-500.0,0.00025753,3]
[329413655,1718326337430,-201.17511647,0.00025753,3]
[329413656,1718326337445,-500.0,0.00025753,3]
[329413657,1718326337456,-500.0,0.00025753,3]
[329413658,1718326337483,-500.0,0.00025753,3]
[329413659,1718326337539,-500.0,0.00025753,3]